fUSD/lending_fUSD_20240614
["ID","MTS","AMOUNT","RATE_DAILY","PERIOD"]
[329498701,1718397706973,157.061505,0.00028,90]
[329498702,1718397707327,157.061505,0.00028,90]
[329498703,1718397707578,157.061505,0.00028,90]
[329498704,1718397707913,157.061505,0.00028,90]
[329498705,1718397708238,157.061505,0.00028,90]
[329498706,1718397708574,157.061505,0.00028,90]
[329498707,1718397708929,157.061505,0.00028,90]
[329498708,1718398046165,-155.0,0.00012724,2]
[329498709,1718398046204,-155.0,0.00012724,2]
[329498710,1718398046240,-155.0,0.00012725,2]
[329498711,1718398046276,-155.0,0.00012726,2]
[329498712,1718398046440,-355.34901942,0.00012726,2]
[329498713,1718398046481,-1278.05478064,0.00012726,2]
[329498714,1718398046514,-155.0,0.00012727,2]
[329498715,1718398046561,-155.0,0.00012727,2]
[329498716,1718398046604,-1068.40538847,0.00012727,2]
[329498717,1718398046658,-659.46610537,0.00012728,2]
[329498718,1718398046709,-166.799397,0.00012728,2]
[329498719,1718398046753,-407.88409062,0.00012729,2]
[329498720,1718398046811,-1414.76148748,0.00012729,2]
[329498721,1718398153137,-155.0,0.0001255,2]
[329498722,1718398153174,-155.0,0.00012551,2]
[329498723,1718398153201,-66.14,0.00012551,2]
[329498728,1718398195536,-409.85937535,0.00010726,2]
[329498729,1718398195596,-482.31770183,0.00010726,2]
[329498730,1718398218474,-464.32,0.00010727,2]
[329498754,1718398233186,-1045.16,0.00012495,2]
[329498755,1718398233216,-250.0,0.00012502,2]
[329498756,1718398233231,-3036.62307355,0.00012551,2]
[329498757,1718398233247,-150.0,0.00012553,2]
[329498758,1718398233259,-167.04,0.00012577,2]
[329498759,1718398233279,-251.96596981,0.00012598,2]
[329498760,1718398233291,-166.799397,0.00012723,2]
[329498761,1718398233337,-355.34901942,0.00012724,2]
[329498762,1718398233374,-150.0,0.00012725,2]
[329498763,1718398233396,-150.0,0.0001274,2]
[329498764,1718398233412,-250.0,0.00012772,2]
[329498765,1718398233425,-233.93,0.00012772,2]
[329498766,1718398233459,-792.99144726,0.00012967,2]
[329498767,1718398233476,-155.0,0.00012968,2]
[329498768,1718398233508,-848.18,0.00012968,2]
[329498769,1718398233520,-1383.53,0.00012969,2]
[329498770,1718398233552,-1955.12,0.00012969,2]
[329498771,1718398233600,-879.73,0.00012969,2]
[329498772,1718398233616,-155.0,0.00012979,2]
[329498773,1718398233640,-267.49632808,0.00012979,2]
[329498774,1718398233704,-31186.71802259,0.0001298,2]
[329498775,1718398233720,-464.32,0.00012991,2]
[329498776,1718398233744,-898.5362405,0.00013,2]
[329498777,1718398233771,-23890.0,0.00013065,2]
[329498778,1718398233783,-165.8,0.00013135,2]
[329498779,1718398233812,-191.94,0.00013296,2]
[329498780,1718398233833,-210.1,0.00013699,2]
[329498781,1718398233852,-300.0,0.000138,5]
[329498782,1718398233864,-600.0,0.000139,5]
[329498783,1718398233891,-182.17903324,0.00013945,2]
[329498784,1718398233924,-178.35118489,0.00013945,2]
[329498785,1718398233940,-151.74,0.0001399,2]
[329498786,1718398233953,-151.74,0.0001399,2]
[329498787,1718398233966,-210.0,0.00013997,2]
[329498788,1718398234002,-155.16730935,0.00013998,2]
[329498789,1718398234017,-157.58092106,0.00013998,2]
[329498790,1718398234033,-405.86902924,0.00013998,2]
[329498791,1718398234093,-663.8255445,0.00013998,2]
[329498792,1718398234117,-155.0,0.00013998,2]
[329498793,1718398234129,-162.80706654,0.00013998,2]
[329498794,1718398234156,-1284.24598424,0.00013998,2]
[329498795,1718398234185,-219.67224039,0.00013998,2]
[329498796,1718398234198,-155.0,0.00013998,2]
[329498797,1718398234236,-286.53333514,0.00013998,2]
[329498798,1718398234254,-155.0,0.00013998,2]
[329498799,1718398234273,-1187.76009777,0.00013998,2]
[329498800,1718398234286,-409.85937535,0.00013998,2]
[329498801,1718398234299,-481.68703835,0.00013998,2]
[329498802,1718398234349,-391.58477386,0.00013999,2]
[329498803,1718398234392,-448521.83395762,0.00014,2]
[329498804,1718398234488,-63348.46083599,0.00014,2]
[329498805,1718398234505,-17428.161262,0.00014,2]
[329498811,1718398235164,-992.484,0.00014,2]
[329498812,1718398235177,-4975.74058143,0.00014,2]
[329498818,1718398235308,-429.8742519,0.00014,2]
[329498833,1718398240124,-311.26440801,0.00014,2]
[329498834,1718398240141,-4277.83989396,0.00014,2]
[329498835,1718398240923,-417.74492286,0.00014,2]
[329498844,1718398244040,-3297.7323,0.00014,2]
[329498845,1718398244068,-3210.81251125,0.00014,2]
[329498846,1718398244529,-482.00237009,0.00014,2]
[329498850,1718398244973,-392.29490377,0.00014,2]
[329498851,1718398249349,-355.34901942,0.00013999,2]
[329498852,1718398249362,-167.97632489,0.00013999,2]
[329498853,1718398249408,-409.85937535,0.00013999,2]
[329498854,1718398249436,-555.53582863,0.00014,2]
[329499049,1718398254264,-0.00545913,0.00013999,2]
[329499051,1718398254286,-481.00965895,0.00013999,2]
[329499053,1718398254317,-85671.18284017,0.00014,2]
[329499061,1718398254492,-341.87452069,0.00014,2]
[329499533,1718399009899,500.0,0.00027,60]
[329499534,1718399370168,-376.14,0.00012405,2]
[329499541,1718399434268,-462.85,0.0001231,2]
[329499542,1718399434282,-409.85937535,0.00013543,2]
[329499543,1718399434293,-355.34901942,0.00013544,2]
[329499544,1718399434305,-449.30986604,0.00013545,2]
[329499545,1718399434322,-865.31331914,0.0001386,2]
[329499546,1718399434347,-23165.08778951,0.0001386,2]
[329499547,1718399434360,-215.55353607,0.00013875,2]
[329499548,1718399434408,-383.3117566,0.00013894,2]
[329499549,1718399434440,-1000.0,0.00013976,2]
[329499550,1718399434462,-254.0254008,0.00013999,2]
[329499551,1718399434498,-150.0,0.00013999,2]
[329499552,1718399434539,-173042.16528291,0.00014,2]
[329499553,1718399435113,-626.85191041,0.00014,2]
[329499554,1718399435140,-4427.30363913,0.00014,2]
[329499555,1718399435160,-1749.12266264,0.00014,2]
[329499556,1718399435176,-214401.17286945,0.00014,2]
[329499561,1718399435617,-75692.82811031,0.00014,2]
[329499577,1718399439180,-1654.53650654,0.00014,2]
[329499578,1718399440108,-5243.23166968,0.00014,2]
[329499579,1718399440253,-5638.59697852,0.00014,2]
[329499580,1718399440280,-1381.34083824,0.00014,2]
[329499581,1718399440316,-311.82414108,0.0001401,2]
[329499582,1718399440335,-612.49108332,0.0001411,2]
[329499583,1718399440349,-150.0,0.0001421,2]
[329499584,1718399440372,-250.0,0.00014244,2]
[329499585,1718399440405,-499.99,0.00014273,2]
[329499586,1718399440436,-250.0,0.00014503,2]
[329499587,1718399440449,-462.85,0.00014574,2]
[329499588,1718399440496,-200.0,0.0001458,2]
[329499589,1718399440525,-167.04,0.00014673,2]
[329499590,1718399440570,-204.01,0.00014697,2]
[329499591,1718399440590,-373.29211773,0.00014891,2]
[329499592,1718399441054,-830.53999099,0.00014891,2]
[329499593,1718399441114,-1647.70314971,0.00014891,2]
[329499594,1718399441182,-5115.537408,0.00014891,2]
[329499595,1718399441220,-1969.22712928,0.00014891,2]
[329499597,1718399441384,-655.82000289,0.00014891,2]
[329499701,1718399445706,-327.79167724,0.00014891,2]
[329499702,1718399446852,-10720.31852416,0.00014891,2]
[329499703,1718399446876,-200.0,0.000149,5]
[329499704,1718399446901,-524.73039172,0.000149,2]
[329499705,1718399446913,-252.83554621,0.0001499,2]
[329499706,1718399446924,-73973.29837808,0.00015,2]
[329499707,1718399446956,-2203.62493543,0.00015,2]
[329499742,1718399449384,-1563.91,0.00015,2]
[329499743,1718399449425,-475.24593431,0.00015,2]
[329499750,1718399450812,-291.23614454,0.00014999,2]
[329499753,1718399450852,-1839.91885557,0.00015,2]
[329499755,1718399450881,-5501.10431999,0.00015,2]
[329499886,1718399887047,220.36,0.00025778,120]
[329499887,1718400313036,1000.0,0.00028,120]
[329499888,1718400323240,1000.0,0.00028,120]
[329499889,1718400329580,1000.0,0.00028,120]
[329499890,1718400336524,1000.0,0.00028,120]
[329499891,1718400343407,1000.0,0.00028,120]
[329499892,1718400350158,1000.0,0.00028,120]
[329499893,1718400357221,1000.0,0.00028,120]
[329499894,1718400366537,1000.0,0.00028,120]
[329499895,1718400372678,1000.0,0.00028,120]
[329499896,1718400380358,1000.0,0.00028,120]
[329499897,1718400387262,1000.0,0.00028,120]
[329499898,1718400394067,1000.0,0.00028,120]
[329499899,1718400401134,1000.0,0.00028,120]
[329499900,1718400408003,1000.0,0.00028,120]
[329499901,1718400415179,1000.0,0.00028,120]
[329499902,1718400422568,1000.0,0.00028,120]
[329499903,1718400430588,1000.0,0.00028,120]
[329499904,1718400437223,-449.30986604,0.00012274,2]
[329499905,1718400437264,-304.61863798,0.00012275,2]
[329499906,1718400437345,-2338.37648856,0.00012276,2]
[329499907,1718400437394,-409.85937535,0.00012276,2]
[329499908,1718400437430,-41898.27073178,0.00012285,2]
[329499909,1718400437479,-1631.9008,0.00012305,2]
[329499910,1718400437536,-398.5204573,0.00014709,2]
[329499911,1718400437623,-207.0327,0.00014963,2]
[329499912,1718400437705,-188.80480057,0.00014998,7]
[329499913,1718400437749,-22148.55249665,0.00014998,2]
[329499914,1718400437788,-2504.22750335,0.00014998,2]
[329499915,1718400437827,-127013.57630956,0.00015,2]
[329499916,1718400437857,-500.0,0.00015,2]
[329499917,1718400437884,-2135.30738,0.00015,2]
[329499918,1718400437909,-3050.9709247,0.00015023,2]
[329499919,1718400437939,-722.126881,0.00015033,2]
[329499920,1718400437983,-62146.8683502,0.00015043,2]
[329499921,1718400438020,-1000.0,0.00015723,2]
[329499922,1718400438065,-224.08,0.0001592,2]
[329499923,1718400438099,-4581.73,0.00016116,2]
[329499924,1718400438172,-1337.76,0.00016438,2]
[329499925,1718400438209,-448.46,0.00016539,2]
[329499926,1718400438263,-546.21197573,0.00017254,2]
[329499927,1718400438305,-1000.0,0.0001747,2]
[329499928,1718400438349,-204.01,0.00018108,2]
[329499929,1718400438406,-250.0,0.00018118,2]
[329499930,1718400438453,-695.76,0.00018161,2]
[329499931,1718400438495,-159.59,0.00018183,2]
[329499932,1718400438566,-250.0,0.00018191,2]
[329499933,1718400438610,-162.3,0.00018301,2]
[329499934,1718400438670,-172.01,0.00018334,2]
[329499935,1718400438720,-172.01,0.00018338,2]
[329499936,1718400438753,-172.01,0.00018343,2]
[329499937,1718400438787,-172.01,0.00018348,2]
[329499938,1718400438821,-172.01,0.00018353,2]
[329499939,1718400438868,-172.01,0.00018358,2]
[329499940,1718400438903,-172.01,0.00018362,2]
[329499941,1718400438945,-172.01,0.00018367,2]
[329499942,1718400439071,-172.01,0.00018372,2]
[329499943,1718400439156,-172.01,0.00018377,2]
[329499944,1718400439216,-172.01,0.00018382,2]
[329499945,1718400439249,-172.01,0.00018387,2]
[329499946,1718400439286,-172.01,0.00018391,2]
[329499947,1718400439364,-162.3,0.00018396,2]
[329499948,1718400439439,-172.01,0.00018396,2]
[329499949,1718400439529,-172.01,0.00018401,2]
[329499950,1718400439556,-172.01,0.00018406,2]
[329499951,1718400439584,-172.01,0.00018411,2]
[329499952,1718400439622,-172.01,0.00018416,2]
[329499953,1718400439653,-172.01,0.0001842,2]
[329499954,1718400439718,-172.01,0.00018425,2]
[329499955,1718400439797,-162.3,0.00018492,2]
[329499956,1718400439840,-4351.26,0.0001852,2]
[329499957,1718400439883,-162.3,0.00018587,2]
[329499958,1718400439927,-162.3,0.00018682,2]
[329499959,1718400439995,-220.36,0.00018747,2]
[329499960,1718400440039,-162.3,0.00018778,2]
[329499961,1718400440082,-448.46,0.00018803,2]
[329499962,1718400440114,-162.3,0.00018873,2]
[329499963,1718400440159,-832.61,0.00018937,2]
[329499964,1718400440195,-417.77,0.00018949,2]
[329499965,1718400440251,-162.3,0.00018968,2]
[329499966,1718400440317,-162.3,0.00019064,2]
[329499967,1718400440380,-162.3,0.00019159,2]
[329499968,1718400440433,-1000.0,0.00019217,2]
[329499969,1718400440529,-162.3,0.00019255,2]
[329499970,1718400440586,-404.46067308,0.000195,2]
[329499971,1718400551161,-2252.22898915,0.00017258,2]
[329499972,1718400559143,-1768.52814644,0.00017258,2]
[329499973,1718400574192,-15558.15096068,0.00017258,2]
[329499974,1718400574249,-743.55039925,0.00017259,2]
[329499975,1718400574328,-190.20714377,0.00017259,2]
[329499976,1718400574387,-47.85773729,0.00017259,2]
[329499984,1718400634389,-263.744,0.00017259,2]
[329499985,1718400635292,-51.84036432,0.00017259,2]
[329499986,1718400635327,-1702.93113074,0.00017259,2]
[329499987,1718400635338,-20281.57543878,0.00017259,2]
[329499988,1718400635352,-403.61,0.00018325,2]
[329499989,1718400635363,-3474.53932692,0.000195,2]
[329499990,1718400635375,-1501.3987249,0.00019547,2]
[329499991,1718400635386,-5933.6772908,0.00019547,2]
[329499992,1718400635446,-2135.30738,0.0001956,2]
[329499993,1718400635471,-2000.54181067,0.0001961,2]
[329499994,1718400635486,-55242.3512765,0.00019611,2]
[329499995,1718400635496,-4273.80145859,0.00019625,2]
[329499996,1718400635512,-302.24547736,0.00019724,2]
[329499997,1718400635525,-879.0,0.000198,2]
[329499998,1718400635537,-417.77,0.00019925,2]
[329499999,1718400635557,-850.87,0.00019925,2]
[329500000,1718400635604,-417.77,0.00019925,2]
[329500001,1718400635615,-910.06,0.00019925,2]
[329500002,1718400635638,-827.76,0.00019925,2]
[329500003,1718400635657,-300.0,0.00020045,2]
[329500004,1718400635701,-300.75,0.00020045,2]
[329500005,1718400635720,-669.55,0.00020045,2]
[329500006,1718400635744,-525.95,0.00020045,2]
[329500007,1718400635754,-866.08,0.00020092,2]
[329500008,1718400635773,-403.61,0.00020588,2]
[329500009,1718400635796,-353.74,0.00020867,2]
[329500010,1718400635808,-150.0,0.00020867,2]
[329500011,1718400635821,-417.77,0.00020884,2]
[329500012,1718400635832,-695.76,0.000209,2]
[329500013,1718400635851,-1250.0,0.00021,2]
[329500014,1718400635880,-201.799218,0.00021,2]
[329500015,1718400635911,-220.36,0.00021091,2]
[329500016,1718400635924,-200.0,0.0002156,2]
[329500017,1718400635937,-150.0,0.00021688,2]
[329500018,1718400635962,-150.0,0.00021688,2]
[329500019,1718400635992,-164.35,0.00021688,2]
[329500020,1718400636006,-353.74,0.00021688,2]
[329500021,1718400636024,-423.01,0.00021688,2]
[329500022,1718400636035,-164.28,0.00021688,2]
[329500023,1718400636049,-150.0,0.00021688,2]
[329500024,1718400636065,-150.0,0.00021688,2]
[329500025,1718400636116,-150.0,0.00021688,2]
[329500026,1718400636166,-353.74,0.00021688,2]
[329500027,1718400636224,-164.35,0.00021688,2]
[329500028,1718400636238,-423.01,0.00021688,2]
[329500029,1718400636296,-150.0,0.00021688,2]
[329500030,1718400636311,-150.0,0.00021688,2]
[329500031,1718400636324,-300.0,0.00021688,2]
[329500032,1718400636351,-150.0,0.00021688,2]
[329500033,1718400636393,-150.32777,0.00021698,2]
[329500034,1718400636435,-200.0,0.000217,7]
[329500035,1718400636464,-155.0,0.00021705,2]
[329500036,1718400636477,-162.76055612,0.00021705,2]
[329500037,1718400636501,-258.1163,0.00021717,2]
[329500038,1718400636519,-3756.1229,0.00021717,2]
[329500039,1718400636552,-200.0,0.00021742,2]
[329500040,1718400636565,-152.0,0.00021779,3]
[329500041,1718400636581,-500.0,0.000218,7]
[329500042,1718400636593,-606.06357622,0.000218,2]
[329500055,1718400640325,-901.3376186,0.000218,2]
[329500056,1718400640346,-1559.97189616,0.000218,2]
[329500057,1718400640376,-329.00482078,0.000218,2]
[329500060,1718400642190,-8470.46467724,0.000218,2]
[329500061,1718400642217,-685.8544,0.00021807,2]
[329500062,1718400642229,-500.0,0.00021807,2]
[329500063,1718400642253,-5778.8699,0.00021807,2]
[329500064,1718400642265,-1000.0,0.00021807,2]
[329500065,1718400642277,-49779.8604,0.00021807,2]
[329500066,1718400642308,-1000.0,0.00021807,2]
[329500067,1718400642347,-2500.0,0.00021807,2]
[329500068,1718400642358,-3874.2394,0.00021807,2]
[329500069,1718400642370,-219.76,0.00021808,3]
[329500070,1718400642398,-563.36628593,0.00021811,2]
[329500071,1718400642422,-1000.0,0.00021817,2]
[329500072,1718400642450,-10000.0,0.00021817,2]
[329500073,1718400642486,-176.47864197,0.00021817,2]
[329500074,1718400642521,-157.7286237,0.00021817,2]
[329500075,1718400642540,-223.74272518,0.00021817,2]
[329500076,1718400642564,-393.12802475,0.00021817,2]
[329500077,1718400642578,-1093.29520675,0.00021817,2]
[329500078,1718400642593,-14312.60655438,0.00021817,2]
[329500079,1718400642632,-176.82217603,0.00021817,2]
[329500080,1718400642663,-524.73039172,0.00021817,2]
[329500081,1718400642685,-700.0,0.000219,7]
[329500082,1718400642941,-245.33582831,0.00021905,2]
[329500083,1718400642966,-9232.47588249,0.00021907,2]
[329500084,1718400643469,-20159.24663963,0.00021907,2]
[329500085,1718400643499,-2125.34602237,0.00021907,2]
[329500086,1718400643512,-4079.65127011,0.00021907,2]
[329500087,1718400643752,-384.30158449,0.00021907,2]
[329500088,1718400643916,-330.345,0.00021907,2]
[329500090,1718400645042,-150.0,0.00021688,2]
[329500091,1718400645066,-328.7,0.00021688,2]
[329500092,1718400645081,-1374.25989709,0.00021707,2]
[329500093,1718400645109,-309.033,0.00021707,2]
[329500094,1718400645167,-6148.99910291,0.00021707,2]
[329500095,1718400645207,-1683.29289709,0.00021907,2]
[329500096,1718400645251,-1227.49347141,0.00021907,2]
[329500097,1718400645746,-12508.56552156,0.00021907,2]
[329500098,1718400645763,-1668.76721214,0.00021907,2]
[329500099,1718400645779,-1136.4294906,0.00021907,2]
[329500100,1718400645802,-1977.36287485,0.00021907,2]
[329500101,1718400645842,-942.15861031,0.00021907,2]
[329500102,1718400646334,-178912.33942095,0.00021907,2]
[329500103,1718400646401,-252.83554621,0.00021907,2]
[329500104,1718400646445,-820.0,0.00021911,2]
[329500105,1718400646462,-1000.0,0.00021911,2]
[329500106,1718400646483,-263.93289625,0.00021914,2]
[329500107,1718400646501,-155.0,0.00021914,2]
[329500108,1718400646524,-334.35218342,0.00021915,2]
[329500109,1718400646543,-241.72145719,0.00021915,2]
[329500110,1718400646562,-155.0,0.00021915,2]
[329500111,1718400646577,-8606.6416983,0.00021915,2]
[329500112,1718400647199,-463.45189035,0.00021906,2]
[329500113,1718400647355,-599.99999999,0.00017259,2]
[329500114,1718400647373,-74350.86431602,0.00021906,2]
[329500115,1718400647391,-4640.72510408,0.00021906,2]
[329500116,1718400647405,-20180.39415849,0.00021906,2]
[329500117,1718400647419,-32502.56452936,0.00021906,2]
[329500118,1718400647450,-1935.33817195,0.00021915,2]
[329500119,1718400647469,-8424.06422309,0.00021915,2]
[329500120,1718400647493,-3310.96497116,0.00021917,2]
[329500121,1718400647513,-505.52078111,0.00021917,2]
[329500122,1718400647541,-500.0,0.00021917,2]
[329500123,1718400647555,-506.76588729,0.00021917,2]
[329500124,1718400647568,-503.40162811,0.00021917,2]
[329500125,1718400647583,-511.78830957,0.00021917,2]
[329500126,1718400647622,-500.0,0.00021917,2]
[329500127,1718400647634,-506.09144633,0.00021917,2]
[329500128,1718400647645,-503.96075311,0.00021917,2]
[329500129,1718400647680,-508.05191489,0.00021917,2]
[329500130,1718400647699,-500.0,0.00021917,2]
[329500131,1718400647727,-506.8696261,0.00021917,2]
[329500132,1718400647756,-500.0,0.00021917,2]
[329500133,1718400647768,-500.0,0.00021917,2]
[329500134,1718400647808,-516.05915166,0.00021917,2]
[329500135,1718400647819,-506.59553276,0.00021917,2]
[329500136,1718400647837,-503.05274432,0.00021917,2]
[329500137,1718400647859,-503.88672779,0.00021917,2]
[329500138,1718400647885,-502.77345469,0.00021917,2]
[329500139,1718400647909,-396.2066835,0.00021917,2]
[329500140,1718400647953,-565.95910084,0.00021917,2]
[329500142,1718400647972,-501.82662541,0.00021917,2]
[329500143,1718400647991,-513.06544441,0.00021917,2]
[329500144,1718400648042,-504.68709903,0.00021917,2]
[329500145,1718400648061,-572.5861998,0.00021917,2]
[329500146,1718400648091,-498.02181518,0.00021917,2]
[329500147,1718400648104,-200.88240171,0.00021917,2]
[329500148,1718400648128,-499.01010876,0.00021917,2]
[329500149,1718400648222,-319.94091388,0.00021917,2]
[329500150,1718400648242,-176.528973,0.00021917,2]
[329500151,1718400648272,-514.45802437,0.00021917,2]
[329500152,1718400648287,-300.1643882,0.00021917,2]
[329500153,1718400648301,-517.16291062,0.00021917,2]
[329500154,1718400648313,-507.18909149,0.00021917,2]
[329500155,1718400648329,-507.9040221,0.00021917,2]
[329500156,1718400648377,-524.00168731,0.00021917,2]
[329500157,1718400648428,-500.0,0.00021917,2]
[329500158,1718400648443,-500.0,0.00021917,2]
[329500159,1718400648464,-500.0,0.00021917,2]
[329500160,1718400648477,-508.74763421,0.00021917,2]
[329500161,1718400648516,-500.0,0.00021917,2]
[329500162,1718400648571,-500.0,0.00021917,2]
[329500163,1718400648603,-500.0,0.00021917,2]
[329500164,1718400648633,-514.42024046,0.00021917,2]
[329500165,1718400648648,-430.31024414,0.00021917,2]
[329500166,1718400648666,-500.0,0.00021917,2]
[329500167,1718400648701,-507.97856578,0.00021917,2]
[329500168,1718400648752,-508.62659906,0.00021917,2]
[329500169,1718400648785,-500.0,0.00021917,2]
[329500170,1718400648821,-500.0,0.00021917,2]
[329500171,1718400648847,-513.95186386,0.00021917,2]
[329500172,1718400648882,-500.0,0.00021917,2]
[329500173,1718400648894,-571.63,0.00021917,2]
[329500174,1718400648927,-509.90527158,0.00021917,2]
[329500175,1718400648955,-500.0,0.00021917,2]
[329500176,1718400648989,-500.0,0.00021917,2]
[329500177,1718400649008,-500.0,0.00021917,2]
[329500178,1718400649023,-513.24101532,0.00021917,2]
[329500180,1718400649061,-174.44611919,0.00021917,2]
[329500182,1718400649075,-512.03272699,0.00021917,2]
[329500183,1718400649086,-510.22318357,0.00021917,2]
[329500185,1718400649100,-228.46,0.00021917,2]
[329500187,1718400649112,-523.08635678,0.00021917,2]
[329500190,1718400649148,-507.74211467,0.00021917,2]
[329500191,1718400649160,-500.0,0.00021917,2]
[329500193,1718400649184,-500.0,0.00021917,2]
[329500195,1718400649198,-519.23427377,0.00021917,2]
[329500196,1718400649253,-513.52521108,0.00021917,2]
[329500197,1718400649275,-500.0,0.00021917,2]
[329500198,1718400649308,-500.0,0.00021917,2]
[329500199,1718400649319,-500.0,0.00021917,2]
[329500200,1718400649330,-500.0,0.00021917,2]
[329500201,1718400649342,-571.67743625,0.00021917,2]
[329500202,1718400649358,-500.0,0.00021917,2]
[329500203,1718400649372,-500.0,0.00021917,2]
[329500204,1718400649404,-500.0,0.00021917,2]
[329500205,1718400649414,-509.97841911,0.00021917,2]
[329500206,1718400649425,-475.18,0.00021917,2]
[329500207,1718400649436,-508.66325207,0.00021917,2]
[329500208,1718400649448,-500.0,0.00021917,2]
[329500209,1718400649464,-303.35724289,0.00021917,2]
[329500210,1718400649479,-509.52630324,0.00021917,2]
[329500211,1718400649515,-500.0,0.00021917,2]
[329500212,1718400649578,-500.0,0.00021917,2]
[329500213,1718400649599,-500.0,0.00021917,2]
[329500214,1718400649614,-292.94496617,0.00021917,2]
[329500215,1718400649626,-500.0,0.00021917,2]
[329500216,1718400649646,-500.0,0.00021917,2]
[329500217,1718400649689,-506.35,0.00021917,2]
[329500218,1718400649717,-500.0,0.00021917,2]
[329500219,1718400649727,-504.85429622,0.00021917,2]
[329500220,1718400649738,-500.0,0.00021917,2]
[329500221,1718400649757,-566.75,0.00021917,2]
[329500222,1718400649768,-500.0,0.00021917,2]
[329500223,1718400649791,-500.0,0.00021917,2]
[329500224,1718400649804,-503.60309372,0.00021917,2]
[329500225,1718400649833,-500.0,0.00021917,2]
[329500226,1718400649844,-500.0,0.00021917,2]
[329500227,1718400649879,-510.87294408,0.00021917,2]
[329500228,1718400649895,-503.33700689,0.00021917,2]
[329500229,1718400649912,-500.0,0.00021917,2]
[329500230,1718400649959,-500.0,0.00021917,2]
[329500231,1718400649969,-500.0,0.00021917,2]
[329500232,1718400649984,-507.27527347,0.00021917,2]
[329500233,1718400649996,-505.34517309,0.00021917,2]
[329500234,1718400650006,-504.67461953,0.00021917,2]
[329500235,1718400650023,-500.0,0.00021917,2]
[329500236,1718400650034,-500.0,0.00021917,2]
[329500237,1718400650054,-500.0,0.00021917,2]
[329500238,1718400650069,-509.44516491,0.00021917,2]
[329500239,1718400650092,-500.0,0.00021917,2]
[329500240,1718400650108,-500.0,0.00021917,2]
[329500241,1718400650122,-500.0,0.00021917,2]
[329500242,1718400650133,-528.56569796,0.00021917,2]
[329500243,1718400650147,-500.0,0.00021917,2]
[329500244,1718400650172,-545.76,0.00021917,2]
[329500245,1718400650185,-500.0,0.00021917,2]
[329500246,1718400650197,-507.88937901,0.00021917,2]
[329500247,1718400650244,-518.45500526,0.00021917,2]
[329500248,1718400650255,-500.0,0.00021917,2]
[329500249,1718400650297,-500.0,0.00021917,2]
[329500250,1718400650310,-500.0,0.00021917,2]
[329500251,1718400650336,-338.65785328,0.00021917,2]
[329500252,1718400650349,-500.0,0.00021917,2]
[329500253,1718400650377,-355.77152762,0.00021917,2]
[329500254,1718400650388,-310.13352679,0.00021917,2]
[329500255,1718400650403,-500.0,0.00021917,2]
[329500256,1718400650448,-500.0,0.00021917,2]
[329500258,1718400650462,-500.0,0.00021917,2]
[329500260,1718400650495,-500.0,0.00021917,2]
[329500262,1718400650506,-500.0,0.00021917,2]
[329500263,1718400650517,-500.0,0.00021917,2]
[329500265,1718400650528,-417.20056583,0.00021917,2]
[329500267,1718400650540,-576.65,0.00021917,2]
[329500269,1718400650555,-520.11620285,0.00021917,2]
[329500270,1718400650572,-512.24153934,0.00021917,2]
[329500272,1718400650618,-500.0,0.00021917,2]
[329500274,1718400650639,-500.0,0.00021917,2]
[329500277,1718400650655,-505.17568495,0.00021917,2]
[329500279,1718400650672,-500.0,0.00021917,2]
[329500280,1718400650686,-576.90139725,0.00021917,2]